fUST/lending_fUST_20250427
["ID","MTS","AMOUNT","RATE_DAILY","PERIOD"]
[359070349,1745693438776,-257.15924089,0.00019999,3]
[359070351,1745693438791,-9855.16785533,0.0002,2]
[359070353,1745693438800,-55865.02135098,0.0002,2]
[359070354,1745693438812,-16835.095,0.0002,2]
[359070356,1745693438825,-7908.899983,0.0002,2]
[359070358,1745693438837,-4034.35364057,0.0002,2]
[359070360,1745693438848,-9736.93587719,0.0002,2]
[359070508,1745693440744,-740.82143104,0.0002,2]
[359070510,1745693440756,-18061.65617583,0.0002,2]
[359070511,1745693440766,-1746.63292355,0.0002,2]
[359070513,1745693440776,-151.0,0.0002,2]
[359070515,1745693440789,-271.281288,0.0002,2]
[359070517,1745693440799,-151.0,0.0002,2]
[359070518,1745693440809,-218.586435,0.0002,2]
[359070520,1745693440818,-218.586435,0.0002,2]
[359070522,1745693440829,-151.0,0.0002,2]
[359070524,1745693440839,-420.0,0.00020209,2]
[359070526,1745693440848,-184.58268994,0.00020221,2]
[359070528,1745693440860,-179.80221756,0.00020261,2]
[359070529,1745693440870,-151.0,0.00020548,2]
[359070531,1745693440879,-733.96011115,0.0002059,2]
[359070533,1745693440889,-507.82241234,0.00020627,2]
[359070535,1745693440899,-535.7182314,0.00020779,2]
[359070537,1745693440909,-600.0,0.00020902,2]
[359070538,1745693440919,-157.45,0.00021,2]
[359070540,1745693440928,-151.0,0.00021096,2]
[359070542,1745693440938,-733.96011115,0.00021279,3]
[359070544,1745693440949,-507.82241234,0.00021382,2]
[359070546,1745693440968,-468.53591157,0.00021817,2]
[359070548,1745693440990,-160.0,0.00021917,2]
[359070550,1745693441013,-733.96011115,0.00021969,3]
[359070552,1745693441035,-587.0,0.00022038,2]
[359070554,1745693441057,-1300.0,0.00022068,2]
[359070556,1745693441078,-507.82241234,0.00022136,2]
[359070557,1745693441101,-900.0,0.00022546,2]
[359070559,1745693441122,-733.96011115,0.00022659,4]
[359070561,1745693441145,-10973.79586342,0.000228,2]
[359070726,1745693443390,-2646.82869,0.0002,2]
[359070728,1745693443400,-1178.17131137,0.000228,2]
[359070730,1745693443412,-548.67886231,0.000228,2]
[359070740,1745693443494,-33628.43042607,0.000228,2]
[359071030,1745693446566,-1649.53662793,0.0002,2]
[359071033,1745693446592,-997.29206207,0.0002,2]
[359071035,1745693446613,-403.0,0.00022022,2]
[359071037,1745693446637,-3670.92353683,0.000228,2]
[359071039,1745693446663,-151.0,0.000228,7]
[359071041,1745693446683,-203.214946,0.000228,7]
[359071042,1745693446704,-203.214946,0.000228,7]
[359071045,1745693446727,-151.0,0.000228,7]
[359071047,1745693446751,-151.0,0.000228,7]
[359071049,1745693446773,-151.0,0.000228,7]
[359071051,1745693446794,-218.586435,0.000228,2]
[359071053,1745693446811,-218.586435,0.000228,2]
[359071055,1745693446820,-151.0,0.000228,7]
[359071057,1745693446830,-151.0,0.000228,2]
[359071059,1745693446839,-2646.82869,0.000228,7]
[359071061,1745693446849,-2646.82869,0.000228,7]
[359071063,1745693446859,-507.82241234,0.0002289,2]
[359071065,1745693446868,-3000.0,0.000229,2]
[359071066,1745693446877,-465.17679558,0.00022908,2]
[359071068,1745693446887,-500.0,0.00022973,2]
[359071070,1745693446896,-500.0,0.00022973,2]
[359071072,1745693446905,-500.0,0.00022973,2]
[359071074,1745693446915,-500.0,0.00022973,2]
[359071076,1745693446924,-500.0,0.00022973,2]
[359071078,1745693446934,-500.0,0.00022973,2]
[359071080,1745693446943,-501.04134267,0.00022973,2]
[359071082,1745693446953,-500.0,0.00022973,2]
[359071084,1745693446963,-500.0,0.00022973,2]
[359071086,1745693446972,-500.0,0.00022973,2]
[359071088,1745693446982,-500.0,0.00022973,2]
[359071090,1745693446991,-4187.33371204,0.0002299,2]
[359071093,1745693447003,-3598.68252084,0.0002299,2]
[359071095,1745693447020,-839.95942076,0.0002299,2]
[359071097,1745693447031,-3240.29999995,0.0002299,2]
[359072483,1745693749420,338.578644,0.00017648,2]
[359072488,1745693882553,2726.8656169,0.00017649,2]
[359072757,1745694182742,924.6145967,0.00017773,2]
[359072762,1745694438134,-1566.15633734,0.00018428,2]
[359072763,1745694438157,-160.0,0.00018521,2]
[359072764,1745694438183,-180.627237,0.00018541,2]
[359072765,1745694438204,-300.0,0.00018624,2]
[359072766,1745694438226,-2685.47676661,0.00018625,2]
[359072776,1745694632505,-3336.03982882,0.00018425,2]
[359072778,1745694632516,-1365.46592828,0.00018524,2]
[359072779,1745694632527,-180.62723697,0.00018524,2]
[359072781,1745694632536,-300.0,0.00018623,2]
[359072782,1745694632547,-462.0,0.00018623,2]
[359072783,1745694632557,-300.0,0.00018623,2]
[359072784,1745694632568,-500.0,0.00018624,2]
[359072785,1745694632577,-154.46606858,0.00018624,2]
[359072786,1745694632587,-279.74113316,0.00018624,2]
[359072787,1745694632597,-500.0,0.00018624,2]
[359072788,1745694632607,-500.0,0.00018624,2]
[359072789,1745694632618,-500.0,0.00018624,2]
[359072790,1745694632629,-500.0,0.00018624,2]
[359072791,1745694632639,-500.0,0.00018624,2]
[359072792,1745694632650,-500.0,0.00018624,2]
[359072793,1745694632660,-500.0,0.00018624,2]
[359072794,1745694632669,-500.0,0.00018624,2]
[359072795,1745694632679,-500.0,0.00018624,2]
[359072796,1745694632690,-500.0,0.00018624,2]
[359072797,1745694632699,-500.0,0.00018624,2]
[359072798,1745694632709,-500.0,0.00018624,2]
[359072799,1745694632719,-500.0,0.00018624,2]
[359072800,1745694632729,-500.0,0.00018624,2]
[359072801,1745694632739,-500.0,0.00018624,2]
[359072802,1745694632749,-500.0,0.00018624,2]
[359072803,1745694632759,-615.8583344,0.00018624,2]
[359072804,1745694632768,-500.0,0.00018624,2]
[359072805,1745694632778,-500.0,0.00018624,2]
[359072806,1745694632788,-500.0,0.00018624,2]
[359072807,1745694632797,-500.0,0.00018624,2]
[359072808,1745694632808,-500.0,0.00018624,2]
[359072809,1745694632817,-500.0,0.00018624,2]
[359072810,1745694632827,-161.99013462,0.00018624,2]
[359072811,1745694632837,-500.0,0.00018624,2]
[359072812,1745694632847,-500.0,0.00018624,2]
[359072813,1745694632857,-500.0,0.00018624,2]
[359072814,1745694632867,-500.0,0.00018624,2]
[359072815,1745694632877,-500.0,0.00018624,2]
[359072816,1745694632891,-290.6631864,0.00018624,2]
[359072817,1745694632901,-500.0,0.00018624,2]
[359072818,1745694632911,-982.88940735,0.00018624,2]
[359072819,1745694632921,-982.88940735,0.00018624,2]
[359072820,1745694632931,-982.88940735,0.00018624,2]
[359072821,1745694632941,-982.88940735,0.00018624,2]
[359072822,1745694632951,-982.88940735,0.00018624,2]
[359072823,1745694632961,-982.88940735,0.00018624,2]
[359072824,1745694632971,-982.88940735,0.00018624,2]
[359072825,1745694632981,-982.88940735,0.00018624,2]
[359072826,1745694632991,-982.88940735,0.00018624,2]
[359072827,1745694633001,-982.88940735,0.00018624,2]
[359072828,1745694633011,-982.88940735,0.00018624,2]
[359072829,1745694633020,-982.88940735,0.00018624,2]
[359072830,1745694633030,-982.88940735,0.00018624,2]
[359072831,1745694633040,-982.88940735,0.00018624,2]
[359072832,1745694633051,-982.88940735,0.00018624,2]
[359072833,1745694633060,-982.88940735,0.00018624,2]
[359072834,1745694633071,-982.88940735,0.00018624,2]
[359072835,1745694633081,-982.88940735,0.00018624,2]
[359072836,1745694633091,-982.88940735,0.00018624,2]
[359072837,1745694633100,-982.88940735,0.00018624,2]
[359072838,1745694633111,-982.88940735,0.00018624,2]
[359072839,1745694633121,-982.88940735,0.00018624,2]
[359072840,1745694633131,-982.88940735,0.00018624,2]
[359072841,1745694633141,-982.88940735,0.00018624,2]
[359072842,1745694633152,-982.88940735,0.00018624,2]
[359072843,1745694633162,-982.88940735,0.00018624,2]
[359072844,1745694633172,-982.88940735,0.00018624,2]
[359072845,1745694633182,-982.88940735,0.00018624,2]
[359072846,1745694633192,-982.88940735,0.00018624,2]
[359072847,1745694633202,-982.88940735,0.00018624,2]
[359072848,1745694633212,-982.88940735,0.00018624,2]
[359072849,1745694633222,-340.25886424,0.00018624,2]
[359072878,1745694638517,-642.63054311,0.00018624,2]
[359072880,1745694638528,-982.88940735,0.00018624,2]
[359072882,1745694638540,-982.88940735,0.00018624,2]
[359072884,1745694638550,-982.88940735,0.00018624,2]
[359072886,1745694638562,-982.88940735,0.00018624,2]
[359072888,1745694638573,-982.88940735,0.00018624,2]
[359072891,1745694638584,-982.88940735,0.00018624,2]
[359072893,1745694638595,-982.88940735,0.00018624,2]
[359072895,1745694638604,-982.88940735,0.00018624,2]
[359072897,1745694638614,-964.82158737,0.00018624,2]
[359072898,1745694638623,-964.82158737,0.00018624,2]
[359072901,1745694638633,-964.82158737,0.00018624,2]
[359072902,1745694638644,-964.82158737,0.00018624,2]
[359072905,1745694638654,-964.82158737,0.00018624,2]
[359072906,1745694638664,-964.82158737,0.00018624,2]
[359072908,1745694638674,-964.82158737,0.00018624,2]
[359072910,1745694638683,-964.82158737,0.00018624,2]
[359072912,1745694638693,-964.82158737,0.00018624,2]
[359072914,1745694638703,-964.82158737,0.00018624,2]
[359072916,1745694638713,-964.82158737,0.00018624,2]
[359072918,1745694638723,-964.82158737,0.00018624,2]
[359072920,1745694638732,-964.82158737,0.00018624,2]
[359072922,1745694638742,-964.82158737,0.00018624,2]
[359072924,1745694638752,-207.52676963,0.00018624,2]
[359072927,1745694638764,-403.19028049,0.00018624,2]
[359072929,1745694638775,-354.10453725,0.00018624,2]
[359072931,1745694638785,-176.56546275,0.00018624,2]
[359072933,1745694638801,-788.25612462,0.00018624,2]
[359072936,1745694638811,-964.82158737,0.00018624,2]
[359072938,1745694638821,-964.82158737,0.00018624,2]
[359072940,1745694638830,-964.82158737,0.00018624,2]
[359072942,1745694638840,-964.82158737,0.00018624,2]
[359072944,1745694638850,-964.82158737,0.00018624,2]
[359072946,1745694638860,-932.63593853,0.00018624,2]
[359072948,1745694638872,-32.18564884,0.00018624,2]
[359072950,1745694638881,-959.46146745,0.00018624,2]
[359072952,1745694638891,-959.46146745,0.00018624,2]
[359072954,1745694638901,-959.46146745,0.00018624,2]
[359072956,1745694638911,-959.46146745,0.00018624,2]
[359072957,1745694638920,-959.46146745,0.00018624,2]
[359072960,1745694638930,-959.46146745,0.00018624,2]
[359072962,1745694638941,-959.46146745,0.00018624,2]
[359072964,1745694638951,-959.46146745,0.00018624,2]
[359072966,1745694638961,-782.12261156,0.00018624,2]
[359072968,1745694638973,-177.33885589,0.00018624,2]
[359072970,1745694638982,-959.46146745,0.00018624,2]
[359072972,1745694638991,-959.46146745,0.00018624,2]
[359072974,1745694639001,-959.46146745,0.00018624,2]
[359072976,1745694639011,-500.0,0.00018624,2]
[359072978,1745694639020,-2061.24067212,0.00018624,2]
[359072980,1745694639032,-1538.0126962,0.00018624,2]
[359072982,1745694639043,-4538.43764075,0.00018624,2]
[359072984,1745694639053,-400.0,0.00018624,2]
[359072986,1745694639063,-2942.17955513,0.00018631,2]
[359072988,1745694639074,-21957.82044487,0.00018631,2]
[359072990,1745694639084,-160.0,0.00018636,2]
[359072992,1745694639094,-160.0,0.00018636,2]
[359072994,1745694639103,-160.0,0.00018636,2]
[359072996,1745694639113,-160.0,0.00018636,2]
[359072999,1745694639123,-160.0,0.00018636,2]
[359073001,1745694639133,-500.0,0.00018673,2]
[359073003,1745694639143,-500.0,0.00018673,2]
[359073005,1745694639152,-12500.0,0.00018673,2]
[359073007,1745694639163,-8324.37439235,0.00018673,2]
[359073009,1745694639172,-500.0,0.00018898,2]
[359073011,1745694639182,-400.0,0.00018898,2]
[359073013,1745694639191,-240.31917851,0.000189,2]
[359073015,1745694639202,-500.0,0.00019172,2]
[359073017,1745694639211,-400.0,0.00019172,2]
[359073019,1745694639221,-300.0,0.00019178,2]
[359073021,1745694639233,-154.01062912,0.00019446,2]
[359073023,1745694639243,-400.0,0.00019446,2]
[359073025,1745694639253,-508.49059347,0.00019709,2]
[359073027,1745694639263,-400.0,0.0001972,2]
[359073029,1745694639273,-611.6334262,0.000199,2]
[359073031,1745694639283,-400.0,0.00019994,2]
[359073033,1745694639293,-218.0,0.0002,2]
[359073035,1745694639303,-179.78425889,0.00020261,2]
[359073037,1745694639314,-320.0,0.00020268,2]
[359073039,1745694639324,-420.0,0.00020307,2]
[359073041,1745694639334,-420.0,0.00020307,2]
[359073043,1745694639343,-611.63342595,0.0002059,2]
[359073045,1745694639353,-600.0,0.00020822,2]
[359073047,1745694639362,-157.45,0.00021,2]
[359073049,1745694639372,-180.62723697,0.00021012,2]
[359073051,1745694639381,-611.63342595,0.00021279,3]
[359073053,1745694639391,-297.27074953,0.00021514,2]
[359073055,1745694639404,-1068.19517875,0.00021514,2]
[359073057,1745694639413,-160.0,0.00021917,2]
[359073059,1745694639423,-611.63342595,0.00021969,3]
[359073061,1745694639432,-403.0,0.00021992,2]
[359073063,1745694639442,-1166.70392368,0.00022,2]
[359073065,1745694639454,-7233.2753021,0.00022,2]
[359073183,1745694640883,-512.37431689,0.00022,2]
[359073185,1745694640896,-7913.73481232,0.00022,2]
[359073190,1745694640935,-4975.78316583,0.00022,2]
[359073192,1745694640947,-1568.40889104,0.00022,2]
[359073194,1745694640960,-340.365,0.00022,2]
[359073420,1745694643560,-400.0,0.00018629,2]
[359073421,1745694643570,-1.32949645,0.00018903,2]
[359073422,1745694643613,-398.67050355,0.00018903,2]
[359073423,1745694643622,-260.62021785,0.00019177,2]
[359073424,1745694643667,-259.29978215,0.00019177,2]
[359073425,1745694643677,-16939.45116967,0.00022,2]
[359073426,1745694643687,-182.893451,0.00022,7]
[359073427,1745694643697,-182.893451,0.00022,7]
[359073428,1745694643707,-151.0,0.00022,7]
[359073429,1745694643717,-151.0,0.00022,2]
[359073430,1745694643726,-186.0,0.00022,2]
[359073431,1745694643736,-1200.0,0.00022068,2]
[359073432,1745694643746,-587.0,0.00022143,2]
[359073433,1745694643756,-900.0,0.00022466,2]
[359073434,1745694643765,-611.63342595,0.00022659,4]
[359073435,1745694643776,-312.58828079,0.0002268,2]
[359073436,1745694643786,-421.06755229,0.00022868,2]
[359073439,1745694643796,-164.418,0.0002289,2]
[359073442,1745694643805,-184.387,0.0002289,2]
[359073445,1745694643815,-25890.38403604,0.000229,2]
[359073447,1745694643825,-32181.68023441,0.0002299,2]
[359073724,1745694646629,-3593.7,0.0002299,2]
[359073726,1745694646642,-807.18846441,0.0002299,2]
[359073728,1745694646654,-1551.15564759,0.0002299,2]
[359073730,1745694646665,-182.893451,0.0002299,7]
[359073732,1745694646675,-182.893451,0.0002299,7]
[359073734,1745694646685,-299.394292,0.0002299,7]
[359073736,1745694646695,-151.0,0.0002299,2]
[359073738,1745694646706,-151.0,0.0002299,7]
[359073740,1745694646716,-2117.462952,0.0002299,7]
[359073742,1745694646726,-2117.462952,0.0002299,7]
[359073744,1745694646736,-151.0,0.0002299,7]
[359073746,1745694646746,-174.869148,0.0002299,2]
[359073748,1745694646756,-174.869148,0.0002299,2]
[359073750,1745694646765,-151.0,0.0002299,7]
[359073752,1745694646775,-1742.58,0.00023,2]
[359073754,1745694646785,-325.31425327,0.00023,2]
[359073756,1745694646795,-186.0,0.00023014,2]
[359073758,1745694646805,-306.0,0.00023151,2]
[359073760,1745694646814,-1200.0,0.00023164,2]
[359073762,1745694646825,-500.0,0.00023178,2]
[359073764,1745694646834,-570.29638795,0.00023195,2]
[359073766,1745694646844,-160.0,0.00023287,2]
[359073768,1745694646854,-634.0,0.000233,2]
[359073770,1745694646863,-800.0,0.00023346,2]
[359073772,1745694646873,-611.63342595,0.00023348,4]
[359073774,1745694646883,-800.0,0.00023378,2]
[359073776,1745694646895,-800.0,0.00023396,2]
[359073778,1745694646905,-1038.82536864,0.000234,2]
[359073780,1745694646915,-800.0,0.00023405,2]
[359073782,1745694646925,-390.36530191,0.00023429,2]
[359073784,1745694646935,-800.0,0.00023461,2]
[359073786,1745694646946,-275.636419,0.00023462,2]
[359073788,1745694646955,-500.0,0.00023473,2]
[359073790,1745694646965,-488.50903544,0.00023473,2]
[359073792,1745694646974,-500.0,0.00023473,2]
[359073794,1745694646984,-500.0,0.00023473,2]
[359073796,1745694646993,-500.0,0.00023473,2]
[359073798,1745694647003,-500.0,0.00023473,2]
[359073800,1745694647012,-500.0,0.00023473,2]
[359073802,1745694647021,-503.42433294,0.00023473,2]
[359073804,1745694647031,-500.0,0.00023473,2]
[359073806,1745694647040,-500.0,0.00023473,2]
[359073807,1745694647050,-501.32976245,0.00023473,2]
[359073809,1745694647060,-500.0,0.00023473,2]
[359073811,1745694647069,-10795.60008383,0.000235,2]
[359073814,1745694647081,-1383.54627258,0.000235,2]
[359074920,1745694927897,169.289322,0.00017795,2]
[359074921,1745694938989,620.2598106,0.00017786,2]
[359074924,1745695122582,4042.6649539,0.00017703,2]
[359074940,1745695526940,162.0252337,0.00017749,2]
[359074941,1745695539463,3174.12888497,0.00017777,2]
[359074943,1745695644194,-1192.09793233,0.00017777,2]
[359074944,1745695644217,-840.35238838,0.00018613,2]
[359074945,1745695644238,-421.06755229,0.00018613,2]
[359074946,1745695644442,-160.0,0.00018614,2]
[359074947,1745695644464,-160.0,0.00018614,2]
[359074948,1745695644488,-160.0,0.00018614,2]
[359074949,1745695644509,-160.0,0.00018614,2]
[359074950,1745695644530,-160.0,0.00018614,2]
[359074951,1745695644552,-400.0,0.00018623,2]
[359074952,1745695644574,-400.0,0.00018623,2]
[359074953,1745695644596,-300.0,0.00018623,2]
[359074954,1745695644621,-400.0,0.00018624,2]
[359074955,1745695644643,-400.0,0.00018624,2]
[359074956,1745695644666,-158.68389084,0.00018624,2]
[359075108,1745695837696,-300.0,0.00018623,2]
[359075110,1745695837707,-400.0,0.00018624,2]
[359075112,1745695837717,-400.0,0.00018624,2]
[359075114,1745695837726,-400.0,0.00018624,2]
[359075116,1745695837737,-400.0,0.00018624,2]
[359075118,1745695837746,-400.0,0.00018624,2]
[359075120,1745695837756,-400.0,0.00018624,2]
[359075122,1745695837766,-400.0,0.00018624,2]
[359075124,1745695837775,-400.0,0.00018624,2]
[359075127,1745695837786,-400.0,0.00018624,2]
[359075129,1745695837796,-421.06755229,0.00018624,2]
[359075131,1745695837807,-400.0,0.00018892,2]
[359075133,1745695837816,-400.0,0.00018892,2]
[359075135,1745695837826,-87.52342171,0.00018892,2]
[359075137,1745695837838,-312.47657829,0.00018892,2]
[359075139,1745695837848,-400.0,0.00018892,2]
[359075141,1745695837858,-351.33223718,0.00018893,2]
[359075143,1745695837867,-263.74561587,0.00018893,2]
[359075145,1745695837877,-500.0,0.00018893,2]
[359075147,1745695837891,-64.48576465,0.00018893,2]
[359075151,1745695837903,-435.51423535,0.00018893,2]
[359075153,1745695837913,-500.0,0.00018893,2]
[359075155,1745695837923,-500.0,0.00018893,2]
[359075157,1745695837934,-500.0,0.00018893,2]
[359075159,1745695837943,-500.0,0.00018893,2]
[359075161,1745695837953,-500.0,0.00018893,2]
[359075163,1745695837963,-500.0,0.00018893,2]
[359075165,1745695837974,-500.0,0.00018893,2]
[359075167,1745695837984,-500.0,0.00018893,2]
[359075169,1745695837994,-500.0,0.00018893,2]
[359075171,1745695838004,-500.0,0.00018893,2]
[359075173,1745695838013,-500.0,0.00018893,2]
[359075175,1745695838023,-518.18479325,0.00018893,2]
[359075177,1745695838033,-500.0,0.00018893,2]
[359075179,1745695838043,-78.91851354,0.00018893,2]
[359075181,1745695838056,-421.08148646,0.00018893,2]
[359075183,1745695838066,-500.0,0.00018893,2]
[359075185,1745695838076,-500.0,0.00018893,2]
[359075187,1745695838086,-500.0,0.00018893,2]
[359075189,1745695838096,-500.0,0.00018893,2]
[359075191,1745695838106,-500.0,0.00018893,2]
[359075193,1745695838116,-500.0,0.00018893,2]
[359075196,1745695838126,-260.5798831,0.00018894,2]
[359075198,1745695838139,-139.4201169,0.00018894,2]
[359075200,1745695838149,-134.7798831,0.00018894,2]
[359075202,1745695838160,-265.2201169,0.00018894,2]
[359075204,1745695838170,-400.0,0.00018894,2]
[359075206,1745695838181,-400.0,0.00018894,2]
[359075208,1745695838191,-400.0,0.00018894,2]
[359075210,1745695838200,-400.0,0.00018894,2]
[359075212,1745695838210,-400.0,0.00018894,2]
[359075214,1745695838220,-400.0,0.00018894,2]
[359075216,1745695838230,-400.0,0.00018894,2]
[359075218,1745695838239,-400.0,0.00018894,2]
[359075220,1745695838249,-400.0,0.00018894,2]
[359075223,1745695838260,-154.03537006,0.00018895,2]
[359075225,1745695838271,-245.96462994,0.00018895,2]
[359075227,1745695838281,-400.0,0.00018895,2]
[359075229,1745695838291,-400.0,0.00018895,2]
[359075231,1745695838301,-400.0,0.00018895,2]
[359075233,1745695838312,-63.92725774,0.00018895,2]
[359075402,1745695840140,-160.0,0.00018624,2]
[359075403,1745695840151,-336.07274226,0.00018895,2]
[359075404,1745695840161,-400.0,0.00018895,2]
[359075405,1745695840174,-400.0,0.00018895,2]
[359075406,1745695840184,-400.0,0.00018895,2]
[359075407,1745695840194,-400.0,0.00018895,2]
[359075409,1745695840204,-400.0,0.00018895,2]
[359075411,1745695840214,-400.0,0.00018895,2]
[359075413,1745695840225,-400.0,0.00018895,2]
[359075415,1745695840235,-10.63336111,0.00018895,2]
[359075417,1745695840247,-230.68274805,0.00018895,2]
[359075419,1745695840257,-400.0,0.00018895,2]
[359075421,1745695840267,-370.29789285,0.00018895,2]
[359075423,1745695840279,-29.70210715,0.00018895,2]
[359075425,1745695840288,-400.0,0.00018898,2]
[359075428,1745695840298,-400.0,0.00018898,2]
[359075430,1745695840308,-85.20031285,0.00018898,2]
[359075432,1745695840320,-314.79968715,0.00018898,2]
[359075434,1745695840329,-371.06199856,0.00018898,2]
[359075436,1745695840339,-400.0,0.00018898,2]
[359075438,1745695840350,-485.0,0.00018898,2]
[359075440,1745695840360,-315.11978206,0.00018898,2]
[359075442,1745695840369,-400.0,0.00018899,2]
[359075444,1745695840379,-200.0,0.00018899,2]
[359075446,1745695840388,-200.0,0.00018899,2]
[359075448,1745695840398,-400.0,0.00018899,2]
[359075450,1745695840408,-400.0,0.00018899,2]
[359075452,1745695840419,-400.0,0.00018899,2]
[359075454,1745695840430,-400.0,0.00018899,2]
[359075456,1745695840439,-160.21278568,0.000189,2]
[359075458,1745695840450,-279.20025045,0.00019,2]
[359075460,1745695840459,-500.0,0.00019018,2]
[359075462,1745695840468,-500.0,0.00019018,2]
[359075464,1745695840478,-500.0,0.00019084,2]
[359075466,1745695840488,-400.0,0.00019166,2]
[359075468,1745695840497,-400.0,0.00019166,2]
[359075470,1745695840507,-400.0,0.00019166,2]
[359075472,1745695840516,-400.0,0.00019166,2]
[359075474,1745695840525,-376.083979,0.00019168,2]
[359076694,1745696849130,-169.2893238,0.00017982,2]
[359076695,1745696849151,-500.0,0.00018,2]
[359076696,1745696849173,-500.0,0.00018137,2]
[359076697,1745696849195,-160.0,0.00018231,2]
[359076698,1745696849216,-160.0,0.00018231,2]
[359076699,1745696849236,-900.0,0.0001846,2]
[359076700,1745696849257,-160.0,0.00018555,2]
[359076701,1745696849278,-3109.85622225,0.00018555,2]
[359076708,1745696955088,-1386.19601461,0.00017608,2]
[359076709,1745696959108,-1198.62782155,0.00017608,2]
[359076714,1745697031859,-5826.48463984,0.00017608,2]
[359076715,1745697031869,-300.0,0.00018554,2]
[359076717,1745697031878,-376.76655777,0.00018554,2]
[359076720,1745697031893,-1963.51672091,0.00018554,2]
[359076722,1745697031910,-2237.61302906,0.00018554,2]
[359076728,1745697031965,-3777.76249,0.00018554,2]
[359076731,1745697031978,-1447.18289762,0.00018554,2]
[359077061,1745697037841,-2779.25124243,0.00018554,2]
[359077062,1745697037852,-840.35238838,0.00018554,2]
[359077063,1745697037862,-160.0,0.00018555,2]
[359077064,1745697037871,-421.06755229,0.00018555,2]
[359077065,1745697037882,-500.0,0.00018559,2]
[359077066,1745697037892,-500.0,0.00018559,2]
[359077067,1745697037902,-551.81847933,0.00018559,2]
[359077068,1745697037912,-400.0,0.0001856,2]
[359077069,1745697037923,-400.0,0.0001856,2]
[359077070,1745697037933,-400.0,0.0001856,2]
[359077071,1745697037943,-400.0,0.0001856,2]
[359077072,1745697037954,-400.0,0.0001856,2]
[359077073,1745697037964,-400.0,0.0001856,2]
[359077074,1745697037975,-400.0,0.0001856,2]
[359077075,1745697037986,-400.0,0.0001856,2]
[359077076,1745697037997,-338.17286213,0.0001856,2]
[359077077,1745697038155,-61.82713787,0.0001856,2]
[359077078,1745697038166,-400.0,0.0001856,2]
[359077079,1745697038176,-400.0,0.0001856,2]
[359077080,1745697038187,-400.0,0.0001856,2]
[359077081,1745697038197,-400.0,0.0001856,2]
[359077082,1745697038207,-400.0,0.0001856,2]
[359077083,1745697038218,-500.0,0.0001856,2]
[359077084,1745697038228,-400.0,0.0001856,2]
[359077085,1745697038238,-500.0,0.00018561,2]
[359077086,1745697038250,-500.0,0.00018561,2]
[359077087,1745697038260,-400.0,0.00018561,2]
[359077088,1745697038270,-443.02,0.00018561,2]
[359077089,1745697038280,-102.59950235,0.00018561,2]
[359077260,1745697040348,-893.03,0.0001856,2]
[359077262,1745697040359,-310.14049765,0.00018561,2]
[359077264,1745697040369,-400.0,0.00018561,2]
[359077266,1745697040379,-400.0,0.00018561,2]
[359077268,1745697040389,-400.0,0.00018561,2]
[359077270,1745697040400,-400.0,0.00018561,2]
[359077272,1745697040410,-350.21102646,0.00018561,2]
[359077517,1745697042952,-500.0,0.0001856,2]
[359077519,1745697042961,-49.78897354,0.00018561,2]
[359077521,1745697042972,-400.0,0.00018561,2]
[359077523,1745697042982,-400.0,0.00018561,2]
[359077525,1745697042992,-294.98,0.00018561,2]
[359077527,1745697043002,-400.0,0.00018561,2]
[359077529,1745697043012,-400.0,0.00018561,2]
[359077531,1745697043022,-400.0,0.00018561,2]